[Event "Canary Islands-ch 2019"]
[Site "La Palma"]
[Date "2019.05.03"]
[Round "3.3"]
[White "Cruz Gomez, Isidro"]
[Black "Ramirez Medina, Victor"]
[Result "0-1"]
[ECO "E04"]
[WhiteElo "2051"]
[BlackElo "2233"]
[Annotator "NA"]
[PlyCount "50"]
[EventDate "2019.05.02"]
[EventType "swiss"]
[EventCountry "ESP"]
[SourceTitle "playchess.com"]
[Source "ChessBase"]
[SourceQuality "1"]
[TimeControl "5400+30"]

1. d4 {[%emt 0:00:00]} Nf6 {[%emt 0:00:00]} 2. c4 {[%emt 0:00:00]} e6 {[%emt 0:00:06]} 3. Nf3 {[%emt 0:00:13]} d5 {[%emt 0:00:14]} 4. g3 {[%emt 0:00:09]} dxc4 {[%emt 0:00:22]} 5. Bg2 {[%emt 0:00:17]} a6 {[%emt 0:00:29]} 6. Ne5 {[%emt 0:01:07]} c5 {[%emt 0:01:31]} 7. e3 {[%emt 0:04:27] E04: Open Catalan: 5 Nf3} (7. Be3 Nd5 8. Nc3 Nxe3 9. fxe3 Nd7 10. Nxc4 Be7 11. dxc5 Bxc5 12. Nd6+ Bxd6 13. Qxd6 Qe7 14. Qd4 Nf6 15. O-O O-O {½-½ (64) Onischuk,A (2681)-Bruzon Batista,L (2673) Saint Louis 2018}) 7... cxd4 {[%emt 0:02:07]} 8. exd4 {[%emt 0:00:12]} Bb4+ {[%emt 0:01:23]} 9. Nc3 {[%emt 0:01:38]} O-O {[%emt 0:00:41]} 10. Nxc4 $146 {[%emt 0:03:11]} ({Predecessor:} 10. O-O Nd5 11. Nxc4 Bxc3 12. bxc3 b5 13. Ne5 Ra7 14. Ba3 Re8 {1-0 (32) Markus,R (2550)-Portisch,L (2543) Hungary 2004}) 10... Nc6 {[%emt 0:05:27]} 11. Be3 {[%emt 0:07:56]} Nd5 {[%emt 0:01:47]} 12. Qd3 {[%emt 0:02:49]} e5 {[%emt 0:11:46]} 13. Bxd5 {[%emt 0:06:43]} Bxc3+ {[%emt 0:03:32]} 14. Qxc3 {[%emt 0:02:49]} Qxd5 {[%emt 0:10:22]} 15. O-O-O {[%emt 0:00:15]} Bg4 {[%emt 0:01:53]} 16. dxe5 {[%emt 0:14:01]} Bxd1 {[%emt 0:00:33]} 17. Rxd1 {[%emt 0:00:06]} Qe4 {[%emt 0:02:30]} 18. Bc5 {[%emt 0:03:29]} Rfd8 {[%emt 0:02:38]} 19. Bd6 {[%emt 0:03:09]} Rac8 {[%emt 0:03:18]} 20. f3 {[%emt 0:03:13]} Qf5 {[%emt 0:01:53]} 21. g4 $2 {[%emt 0:07:59]} (21. Nb6 Nd4 22. Nxc8 Rxc8 23. Rxd4 Rxc3+ 24. bxc3) 21... Qf4+ {[%emt 0:01:44]} 22. Kb1 {[%emt 0:00:10]} Nxe5 {[%emt 0:07:24]} 23. Rd4 {[%emt 0:05:07]} Rxc4 {[%emt 0:03:12]} 24. Rxc4 {[%emt 0:03:56]} Qxc4 $19 {[%emt 0:01:21]} 25. Qxe5 {[%emt 0:00:17]} Qd3+ {[%emt 0:00:22]} 0-1

[Event "Canary Islands-ch 2019"]
[Site "La Palma"]
[Date "2019.05.04"]
[Round "4.2"]
[White "Korneev Leskova, Svyatoslav"]
[Black "Cubas Cabrera, Angel Luis"]
[Result "1/2-1/2"]
[ECO "E17"]
[WhiteElo "2156"]
[BlackElo "2123"]
[Annotator "NA"]
[PlyCount "34"]
[EventDate "2019.05.02"]
[EventType "swiss"]
[EventCountry "ESP"]
[SourceTitle "playchess.com"]
[Source "ChessBase"]
[SourceQuality "1"]
[TimeControl "5400+30"]

{[%evp 18,27,2,-12,5,7,10,0,6,0,5,6]} 1. c4 {[%emt 0:00:00]} e6 {[%emt 0:00:00]} 2. Nf3 {[%emt 0:00:01]} d5 {[%emt 0:00:00]} 3. g3 {[%emt 0:00:05]} Nf6 {[%emt 0:00:10]} 4. Bg2 {[%emt 0:00:06]} Be7 {[%emt 0:00:09]} 5. O-O {[%emt 0:00:07]} O-O {[%emt 0:00:10]} 6. b3 {[%emt 0:00:07]} b6 {[%emt 0:00:40]} 7. Bb2 {[%emt 0:01:43]} Bb7 {[%emt 0:00:26]} 8. cxd5 {[%emt 0:01:19]} Nxd5 {[%emt 0:02:12]} 9. Nc3 {[%emt 0:01:09]} c5 {[%emt 0:06:16]} 10. d4 {[%emt 0:04:08]} Nd7 {[%emt 0:05:30]} 11. Qd2 {[%emt 0:08:36]} Rc8 {[%emt 0:03:43]} 12. Rfd1 {[%emt 0:08:34]} Qc7 {[%emt 0:05:03]} 13. Rac1 {[%emt 0:09:43]} Qb8 {[%emt 0:01:52]} 14. Nxd5 $11 {[%emt 0:05:48]} Bxd5 {[%emt 0:00:02]} 15. dxc5 {[%emt 0:00:01]} Nxc5 {[%emt 0:00:04]} 16. Bd4 {[%emt 0:00:03]} Rfd8 {[%emt 0:00:09]} 17. Qb2 {[%emt 0:00:04]} Bf8 {[%emt 0:00:02]} 1/2-1/2

[Event "Canary Islands-ch 2019"]
[Site "La Palma"]
[Date "2019.05.04"]
[Round "5.1"]
[White "Martin Hernandez, Ruben"]
[Black "Ramirez Medina, Victor"]
[Result "1/2-1/2"]
[ECO "B53"]
[WhiteElo "2170"]
[BlackElo "2233"]
[Annotator "NA"]
[PlyCount "41"]
[EventDate "2019.05.02"]
[EventType "swiss"]
[EventCountry "ESP"]
[SourceTitle "playchess.com"]
[Source "ChessBase"]
[SourceQuality "1"]
[TimeControl "5400+30"]

1. e4 {[%emt 0:00:17]} c5 {[%emt 0:00:00]} 2. Nf3 {[%emt 0:00:12]} d6 {[%emt 0:00:00]} 3. d4 {[%emt 0:00:36]} cxd4 {[%emt 0:00:03]} 4. Qxd4 {[%emt 0:00:07]} Nc6 {[%emt 0:00:32]} 5. Bb5 {[%emt 0:00:21]} a6 {[%emt 0:00:16]} 6. Bxc6+ {[%emt 0:00:43]} bxc6 {[%emt 0:00:07]} 7. Nc3 {[%emt 0:03:39]} e5 {[%emt 0:00:51]} 8. Qe3 {[%emt 0:05:36]} Nf6 {[%emt 0:02:09]} 9. O-O {[%emt 0:00:32]} Be7 {[%emt 0:01:01]} 10. b3 {[%emt 0:02:41]} O-O {[%emt 0:01:44]} 11. Bb2 {[%emt 0:00:07]} Bg4 {[%emt 0:02:05]} 12. Rad1 {[%emt 0:02:48]} Qc7 {[%emt 0:01:03]} 13. h3 {[%emt 0:01:41]} Bh5 {[%emt 0:00:29]} 14. Ne2 {[%emt 0:05:22]} Rfe8 {[%emt 0:06:43]} 15. c4 {[%emt 0:02:22]} Bxf3 {[%emt 0:06:06]} 16. Qxf3 {[%emt 0:00:09]} a5 {[%emt 0:00:07]} 17. Nc3 {[%emt 0:00:49]} Nd7 {[%emt 0:01:22]} 18. Rd2 {[%emt 0:06:38]} Bg5 {[%emt 0:01:42]} 19. Rdd1 {[%emt 0:00:30]} Be7 {[%emt 0:01:32]} 20. Rd2 {[%emt 0:01:07]} Bg5 {[%emt 0:00:35]} 21. Rdd1 {[%emt 0:00:06]} 1/2-1/2

[Event "Canary Islands-ch 2019"]
[Site "La Palma"]
[Date "2019.05.04"]
[Round "5.2"]
[White "Martin Rodriguez, Pablo"]
[Black "Korneev Leskova, Svyatoslav"]
[Result "1/2-1/2"]
[ECO "A90"]
[WhiteElo "2004"]
[BlackElo "2156"]
[Annotator "NA"]
[PlyCount "36"]
[EventDate "2019.05.02"]
[EventType "swiss"]
[EventCountry "ESP"]
[SourceTitle "playchess.com"]
[Source "ChessBase"]
[SourceQuality "1"]
[TimeControl "5400+30"]

1. d4 {[%emt 0:00:05]} e6 {[%emt 0:00:00]} 2. c4 {[%emt 0:00:05]} f5 {[%emt 0:00:00]} 3. g3 {[%emt 0:00:06]} Nf6 {[%emt 0:00:00]} 4. Bg2 {[%emt 0:00:04]} d5 {[%emt 0:00:05]} 5. Nf3 {[%emt 0:00:08]} c6 {[%emt 0:00:06]} 6. O-O {[%emt 0:00:04]} Bd6 {[%emt 0:00:04]} 7. b3 {[%emt 0:00:20]} Qe7 {[%emt 0:00:05]} 8. a4 {[%emt 0:00:03]} a5 {[%emt 0:00:55]} 9. Ba3 {[%emt 0:00:07]} Bxa3 {[%emt 0:00:07]} 10. Nxa3 {[%emt 0:00:07]} b6 {[%emt 0:00:55]} 11. cxd5 {[%emt 0:06:03]} cxd5 {[%emt 0:06:15]} 12. Ne5 {[%emt 0:08:08]} Bb7 {[%emt 0:02:37]} 13. Nb5 {[%emt 0:00:31]} Na6 {[%emt 0:00:25]} 14. Rc1 {[%emt 0:06:43]} O-O {[%emt 0:00:02]} 15. Nc6 {[%emt 0:00:01]} Qd7 {[%emt 0:00:01]} 16. Ne5 {[%emt 0:00:02]} Qe7 {[%emt 0:00:18]} 17. Nc6 {[%emt 0:00:06]} Qd7 {[%emt 0:00:04]} 18. Ne5 {[%emt 0:00:02]} Qe7 {[%emt 0:00:14]} 1/2-1/2

[Event "Canary Islands-ch 2019"]
[Site "La Palma"]
[Date "2019.05.04"]
[Round "5.3"]
[White "Cubas Cabrera, Angel Luis"]
[Black "Perez Bolanos, David"]
[Result "1-0"]
[ECO "A83"]
[WhiteElo "2123"]
[BlackElo "1844"]
[Annotator "ChessBase"]
[PlyCount "84"]
[EventDate "2019.05.02"]
[EventType "swiss"]
[EventCountry "ESP"]
[SourceTitle "playchess.com"]
[Source "ChessBase"]
[SourceQuality "1"]
[TimeControl "5400+30"]

1. d4 {[%emt 0:00:00]} f5 {[%emt 0:00:13]} 2. Nc3 {[%emt 0:00:00]} Nf6 {[%emt 0:00:39]} 3. Bg5 {[%emt 0:00:00]} e6 {[%emt 0:01:58]} 4. e4 {[%emt 0:00:00]} fxe4 {[%emt 0:04:32]} 5. Nxe4 {[%emt 0:00:00]} Be7 {[%emt 0:00:15]} 6. Bxf6 {[%emt 0:00:25]} Bxf6 {[%emt 0:00:09]} 7. Qh5+ {[%emt 0:00:10]} g6 {[%emt 0:00:41]} 8. Qh6 {[%emt 0:00:05]} d5 {[%emt 0:02:35]} 9. Nxf6+ {[%emt 0:00:53]} Qxf6 {[%emt 0:00:08]} 10. O-O-O {[%emt 0:04:37]} Bd7 {[%emt 0:06:26]} 11. Nf3 {[%emt 0:03:24]} Nc6 {[%emt 0:04:13]} 12. Bb5 {[%emt 0:10:53]} O-O-O {[%emt 0:08:43]} 13. Bxc6 {[%emt 0:01:31]} Bxc6 {[%emt 0:02:34]} 14. Rde1 {[%emt 0:06:24]} Rde8 {[%emt 0:04:10]} 15. Re3 {[%emt 0:10:50]} Re7 {[%emt 0:06:36]} 16. h4 {[%emt 0:05:20]} Rf8 {[%emt 0:04:42]} 17. Rhe1 {[%emt 0:01:43]} Bd7 {[%emt 0:04:05]} 18. Qg5 {[%emt 0:10:51]} Qxg5 {[%emt 0:07:49]} 19. hxg5 {[%emt 0:00:08]} Rf5 {[%emt 0:03:35]} 20. Rh1 {[%emt 0:04:01]} b6 {[%emt 0:01:32]} 21. Kd2 {[%emt 0:10:24]} Kb7 {[%emt 0:02:46]} 22. Re5 {[%emt 0:04:52]} Ref7 {[%emt 0:03:14]} 23. Ree1 {[%emt 0:00:56]} Re7 {[%emt 0:02:09]} 24. Rh4 {[%emt 0:00:30]} c5 {[%emt 0:02:49]} 25. c3 {[%emt 0:00:09]} cxd4 {[%emt 0:00:07]} 26. cxd4 {[%emt 0:00:05]} a6 {[%emt 0:01:06]} 27. Reh1 {[%emt 0:00:30]} Rff7 {[%emt 0:00:06]} 28. Ke3 {[%emt 0:00:45]} Kc7 {[%emt 0:03:26]} 29. Ne5 {[%emt 0:00:24]} Rg7 {[%emt 0:00:05]} 30. f4 {[%emt 0:00:55]} Be8 {[%emt 0:00:18]} 31. Ng4 {[%emt 0:00:30]} Bf7 {[%emt 0:00:07]} 32. Rxh7 {[%emt 0:00:50]} Be8 {[%emt 0:00:38]} 33. Rxg7 {[%emt 0:03:01]} Rxg7 {[%emt 0:00:10]} 34. Rh8 {[%emt 0:02:45]} Bd7 {[%emt 0:01:23]} 35. Ne5 {[%emt 0:00:55]} a5 {[%emt 0:00:10]} 36. Rf8 {[%emt 0:00:25]} Kd6 {[%emt 0:00:14]} 37. Rd8 {[%emt 0:01:46]} Kc7 {[%emt 0:00:33]} 38. Rxd7+ {[%emt 0:01:36]} Rxd7 {[%emt 0:00:06]} 39. Nxd7 {[%emt 0:00:01]} Kxd7 {[%emt 0:00:09]} 40. g4 {[%emt 0:00:03]} Ke7 {[%emt 0:00:10]} 41. f5 {[%emt 0:00:06]} exf5 {[%emt 0:00:24]} 42. gxf5 {[%emt 0:00:07]} gxf5 {[%emt 0:00:03] Ke4 [%emt 00:00:13]} 1-0

[Event "Canary Islands-ch 2019"]
[Site "La Palma"]
[Date "2019.05.05"]
[Round "6.1"]
[White "Ramirez Medina, Victor"]
[Black "Cubas Cabrera, Angel Luis"]
[Result "1-0"]
[ECO "E05"]
[WhiteElo "2233"]
[BlackElo "2123"]
[Annotator "NA"]
[PlyCount "87"]
[EventDate "2019.05.02"]
[EventType "swiss"]
[EventCountry "ESP"]
[SourceTitle "playchess.com"]
[Source "ChessBase"]
[SourceQuality "1"]
[TimeControl "5400+30"]

1. d4 {[%emt 0:02:31]} d5 {[%emt 0:00:00]} 2. c4 {[%emt 0:00:09]} e6 {[%emt 0:00:00]} 3. Nf3 {[%emt 0:00:07]} Nf6 {[%emt 0:00:00]} 4. g3 {[%emt 0:00:09]} Be7 {[%emt 0:00:20]} 5. Bg2 {[%emt 0:00:10]} O-O {[%emt 0:00:07]} 6. O-O {[%emt 0:00:07]} dxc4 {[%emt 0:00:27]} 7. Qc2 {[%emt 0:00:11]} b6 {[%emt 0:00:19] E05: Open Catalan: 5 Nf3 Be7} (7... a6 8. Qxc4 b5 9. Qc2 Bb7 10. Bd2 Be4 11. Qc1 c6 12. Rd1 Nbd7 13. Nc3 Bg6 14. a3 Rc8 15. b4 Nd5 16. Be1 Qc7 17. e3 h6 18. Qb2 N5b6 19. Qe2 {½-½ (31) Yu,Y (2751)-Giri,A (2797) Shenzhen 2019}) 8. Bg5 {[%emt 0:00:15]} Nd5 {[%emt 0:13:37]} 9. Bxe7 {[%emt 0:03:13]} Qxe7 {[%emt 0:00:08]} 10. Nbd2 {[%emt 0:07:25]} Bb7 {[%emt 0:13:31]} 11. Nxc4 {[%emt 0:01:38]} c5 {[%emt 0:08:34]} 12. dxc5 {[%emt 0:15:34]} bxc5 {[%emt 0:18:01]} 13. Nce5 $146 {[%emt 0:07:18]} ({Predecessor:} 13. a3 Nc6 14. e3 Rab8 15. Rac1 {1-0 (27) Dhulipalla,B (2352)-Hasan,M (2180) Chittagong 2018}) 13... h6 {[%emt 0:07:11]} 14. Rac1 {[%emt 0:06:47]} Rc8 {[%emt 0:07:41]} 15. Rfd1 {[%emt 0:02:22]} Nc6 {[%emt 0:03:47]} 16. Nxc6 {[%emt 0:08:33]} Rxc6 {[%emt 0:00:01]} 17. Ne5 {[%emt 0:01:28]} Rcc8 {[%emt 0:00:45]} 18. b3 {[%emt 0:04:10]} Nb6 {[%emt 0:04:40]} 19. Bxb7 {[%emt 0:05:50]} Qxb7 {[%emt 0:00:03]} 20. Rd3 {[%emt 0:02:03]} Nd5 {[%emt 0:03:18]} 21. Rd2 {[%emt 0:03:58]} a5 {[%emt 0:05:14]} 22. Nc4 {[%emt 0:02:50]} Qa6 {[%emt 0:01:59]} 23. e4 {[%emt 0:05:30]} Nb4 {[%emt 0:01:29]} 24. Qc3 {[%emt 0:00:31]} a4 {[%emt 0:01:49]} 25. bxa4 {[%emt 0:03:23]} Qc6 $2 {[%emt 0:03:46]} (25... Rd8 $14) 26. a3 {[%emt 0:01:52]} Na6 {[%emt 0:00:33]} 27. Rcd1 {[%emt 0:01:31]} Rab8 {[%emt 0:01:16]} 28. a5 {[%emt 0:00:20]} Nc7 {[%emt 0:02:03]} 29. a4 {[%emt 0:04:22]} Re8 {[%emt 0:01:33]} 30. Qe5 {[%emt 0:02:28]} (30. Qc2 $18) 30... Qxa4 {[%emt 0:00:42]} 31. Nd6 {[%emt 0:02:35]} ({Much less strong is} 31. Qxc7 $6 Qxc4 32. Rd7 Qa4 $14) 31... Rf8 {[%emt 0:00:24]} 32. Qxc5 {[%emt 0:00:30]} Nb5 $16 {[%emt 0:00:29]} 33. e5 {[%emt 0:02:18]} Qxa5 {[%emt 0:02:09]} 34. Rb2 {[%emt 0:00:57]} Qa4 {[%emt 0:00:20]} 35. Rdb1 {[%emt 0:00:29]} Nxd6 {[%emt 0:00:22]} 36. Rxb8 {[%emt 0:00:12]} Ne8 {[%emt 0:00:17]} 37. Qe7 {[%emt 0:01:01]} g6 {[%emt 0:00:22]} 38. Rc1 {[%emt 0:01:03]} h5 {[%emt 0:00:24]} 39. h4 {[%emt 0:00:31]} Kg7 {[%emt 0:00:26]} 40. Rd8 {[%emt 0:01:50]} Qb5 {[%emt 0:00:31]} 41. Rcc8 {[%emt 0:00:36]} Qb1+ {[%emt 0:00:09]} 42. Kh2 {[%emt 0:00:08]} Qa2 {[%emt 0:00:07]} 43. Qc5 {[%emt 0:00:12]} Qa4 {[%emt 0:00:05]} 44. Ra8 {[%emt 0:00:27]} 1-0

[Event "Canary Islands-ch 2019"]
[Site "La Palma"]
[Date "2019.05.05"]
[Round "6.2"]
[White "Korneev Leskova, Svyatoslav"]
[Black "Martin Hernandez, Ruben"]
[Result "0-1"]
[ECO "A25"]
[WhiteElo "2156"]
[BlackElo "2170"]
[Annotator "RC"]
[PlyCount "79"]
[EventDate "2019.05.02"]
[EventType "swiss"]
[EventCountry "ESP"]
[SourceTitle "playchess.com"]
[Source "ChessBase"]
[SourceQuality "1"]
[TimeControl "5400+30"]

1. c4 {[%emt 0:00:00]} e5 {[%emt 0:02:43]} 2. g3 {[%emt 0:00:00]} Nc6 {[%emt 0:01:28]} 3. Bg2 {[%emt 0:00:08]} f5 {[%emt 0:00:52]} 4. Nc3 {[%emt 0:00:16]} Nf6 {[%emt 0:00:23]} 5. d3 {[%emt 0:00:13]} Bb4 {[%emt 0:03:18]} 6. e3 {[%emt 0:03:50]} Bxc3+ {[%emt 0:01:49]} 7. bxc3 {[%emt 0:00:09]} O-O {[%emt 0:00:06]} 8. Ne2 {[%emt 0:01:26]} d6 {[%emt 0:02:03]} 9. Rb1 {[%emt 0:00:53]} e4 {[%emt 0:00:17]} 10. d4 {[%emt 0:03:06]} Na5 {[%emt 0:02:53]} 11. c5 {[%emt 0:13:41]} dxc5 {[%emt 0:06:42]} 12. Ba3 {[%emt 0:11:20]} b6 {[%emt 0:00:04]} 13. O-O {[%emt 0:01:54]} Be6 {[%emt 0:02:31]} 14. dxc5 {[%emt 0:06:05]} Qxd1 {[%emt 0:12:22]} 15. Rfxd1 {[%emt 0:04:26]} Nc4 {[%emt 0:00:20]} 16. Bc1 {[%emt 0:02:53]} bxc5 {[%emt 0:07:07]} 17. Nf4 {[%emt 0:03:33]} Bf7 {[%emt 0:00:27]} 18. Bf1 {[%emt 0:01:54]} Rfd8 {[%emt 0:03:42]} 19. Rxd8+ {[%emt 0:00:22]} Rxd8 {[%emt 0:00:02]} 20. Kg2 {[%emt 0:00:21]} g5 {[%emt 0:00:52]} 21. Nh3 {[%emt 0:00:34]} h6 {[%emt 0:03:05]} 22. Be2 {[%emt 0:01:09]} Nb6 {[%emt 0:03:48]} 23. Rb5 {[%emt 0:00:59]} Na4 {[%emt 0:05:19]} 24. Ra5 {[%emt 0:02:43]} Nxc3 {[%emt 0:00:09]} 25. Bf1 {[%emt 0:00:20]} Rd1 {[%emt 0:02:06]} 26. Bb2 {[%emt 0:00:10]} Ncd5 {[%emt 0:00:15]} 27. Bxf6 {[%emt 0:03:13]} Nxf6 {[%emt 0:00:31]} 28. Rxc5 {[%emt 0:00:21]} Nd5 {[%emt 0:07:53]} 29. Ra5 {[%emt 0:03:24]} Rd2 {[%emt 0:01:45]} 30. Kg1 {[%emt 0:00:36]} Bh5 {[%emt 0:06:01]} 31. f4 {[%emt 0:17:46]} Nxe3 {[%emt 0:04:12]} 32. Ra3 {[%emt 0:00:34]} Nxf1 33. Kxf1 {[%emt 0:00:02]} Rd1+ {[%emt 0:05:22]} 34. Kf2 {[%emt 0:00:22]} Bg4 {[%emt 0:00:41]} 35. Ng1 {[%emt 0:00:22]} Rd2+ {[%emt 0:00:25]} 36. Kf1 {[%emt 0:01:20]} Rxh2 {[%emt 0:00:34]} 37. Rc3 {[%emt 0:01:10]} Rxa2 {[%emt 0:00:51]} 38. Rxc7 {[%emt 0:00:08]} gxf4 {[%emt 0:00:32]} 39. gxf4 {[%emt 0:00:07]} h5 {[%emt 0:00:26]} 40. Ke1 {[%emt 0:00:58]} 0-1

[Event "Canary Islands-ch 2019"]
[Site "La Palma"]
[Date "2019.05.05"]
[Round "6.3"]
[White "Martin Rodriguez, Pablo"]
[Black "Guerra Arrocha, Daniel"]
[Result "1/2-1/2"]
[ECO "D78"]
[WhiteElo "2004"]
[BlackElo "2133"]
[Annotator "NA"]
[PlyCount "215"]
[EventDate "2019.05.02"]
[EventType "swiss"]
[EventCountry "ESP"]
[SourceTitle "playchess.com"]
[Source "ChessBase"]
[SourceQuality "1"]
[TimeControl "5400+30"]

1. d4 {[%emt 0:00:00]} Nf6 {[%emt 0:22:54]} 2. Nf3 {[%emt 0:00:14]} g6 {[%emt 0:00:05]} 3. g3 {[%emt 0:00:11]} Bg7 {[%emt 0:00:05]} 4. Bg2 {[%emt 0:00:08]} O-O {[%emt 0:00:05]} 5. c4 {[%emt 0:00:04]} c6 {[%emt 0:00:07]} 6. O-O {[%emt 0:00:42]} d5 {[%emt 0:00:03]} 7. Nbd2 {[%emt 0:02:43]} Bf5 {[%emt 0:00:26]} 8. b3 {[%emt 0:00:19]} Ne4 {[%emt 0:00:12]} 9. Bb2 {[%emt 0:00:15]} Qa5 {[%emt 0:01:59]} 10. Qe1 {[%emt 0:13:10] D78: Fianchetto Grünfeld: 6 0-0 c6} (10. e3 Nxd2 11. Nxd2 Bd3 12. Re1 Nd7 13. a3 Nf6 14. Rc1 Bf5 15. b4 Qb6 16. Nb3 Rad8 17. h3 h5 {1-0 (38) Kuzubov,Y (2655)-Hammer,J (2662) Saint Louis 2018}) 10... Nxd2 {[%emt 0:01:34]} 11. Qxd2 {[%emt 0:02:45]} Qxd2 {[%emt 0:00:45]} 12. Nxd2 {[%emt 0:00:11]} dxc4 $146 {[%emt 0:00:24]} ({Predecessor:} 12... Rd8 13. Rac1 Na6 14. Rfd1 Rac8 15. a3 Nc7 16. e3 Ne8 17. b4 e6 18. Bf1 Nd6 19. f3 g5 20. c5 Ne8 {½-½ (20) Portisch,L-Gligoric,S Pula 1971}) 13. Nxc4 {[%emt 0:00:17]} Nd7 {[%emt 0:02:49]} 14. e4 {[%emt 0:02:14]} Be6 {[%emt 0:00:17]} 15. Ne3 {[%emt 0:02:17]} c5 {[%emt 0:03:04]} 16. Rfd1 {[%emt 0:01:52]} Rfd8 {[%emt 0:06:48]} 17. Rab1 {[%emt 0:03:26]} cxd4 {[%emt 0:01:50]} 18. Bxd4 {[%emt 0:00:09]} Bxd4 {[%emt 0:01:24]} 19. Rxd4 {[%emt 0:00:05]} Ne5 {[%emt 0:00:17]} 20. Nd5 {[%emt 0:20:29]} Nc6 {[%emt 0:00:40]} 21. Rdd1 {[%emt 0:00:46]} Rd7 {[%emt 0:03:05]} 22. Nf4 {[%emt 0:11:38]} Rad8 {[%emt 0:00:16]} 23. Rxd7 {[%emt 0:00:20]} Rxd7 {[%emt 0:00:46]} 24. Nxe6 {[%emt 0:01:47]} fxe6 {[%emt 0:00:04]} 25. Rb2 {[%emt 0:01:30]} Ne5 {[%emt 0:00:46]} 26. Bf1 {[%emt 0:03:18]} Rd4 {[%emt 0:00:16]} 27. Re2 {[%emt 0:03:05]} Nf3+ {[%emt 0:00:08]} 28. Kg2 {[%emt 0:00:22]} Nd2 {[%emt 0:00:08]} 29. e5 {[%emt 0:01:36]} g5 {[%emt 0:00:45]} 30. h3 {[%emt 0:03:14]} Kf7 {[%emt 0:00:47]} 31. Re3 {[%emt 0:01:01]} Nxf1 {[%emt 0:02:14]} 32. Kxf1 {[%emt 0:00:07]} Rd1+ {[%emt 0:01:48]} 33. Re1 {[%emt 0:01:06]} Rd5 {[%emt 0:00:21]} 34. Re3 {[%emt 0:02:20]} Kg6 {[%emt 0:00:11]} 35. g4 {[%emt 0:00:06]} h5 {[%emt 0:00:12]} 36. f3 {[%emt 0:00:31]} hxg4 {[%emt 0:00:28]} 37. hxg4 {[%emt 0:00:11]} Ra5 {[%emt 0:00:43]} 38. a4 {[%emt 0:00:42]} Kf7 {[%emt 0:00:15]} 39. Kf2 {[%emt 0:00:34]} b5 {[%emt 0:00:03]} 40. axb5 {[%emt 0:00:26]} Rxb5 {[%emt 0:00:03]} 41. Kg3 {[%emt 0:00:08]} Rb4 {[%emt 0:01:06]} 42. Rc3 {[%emt 0:00:50]} Rb5 {[%emt 0:00:31]} 43. Re3 {[%emt 0:00:12]} Rd5 {[%emt 0:00:30]} 44. Kf2 {[%emt 0:00:45]} Ke8 {[%emt 0:00:27]} 45. Kg3 {[%emt 0:00:31]} Rd4 {[%emt 0:00:07]} 46. Rc3 {[%emt 0:02:58]} Kd7 {[%emt 0:00:20]} 47. Kf2 {[%emt 0:01:56]} Rd5 {[%emt 0:00:09]} 48. Re3 {[%emt 0:00:28]} Rb5 {[%emt 0:00:15]} 49. Kg3 {[%emt 0:00:38]} Rb4 {[%emt 0:00:01]} 50. Rc3 {[%emt 0:00:13]} a6 {[%emt 0:00:20]} 51. Kf2 {[%emt 0:04:41]} Rb5 {[%emt 0:00:05]} 52. Re3 {[%emt 0:01:04]} Kc6 {[%emt 0:00:04]} 53. Kg3 {[%emt 0:00:26]} Rb4 {[%emt 0:00:01]} 54. Rc3+ {[%emt 0:02:59]} Kd5 {[%emt 0:00:41]} 55. Re3 {[%emt 0:00:37]} a5 {[%emt 0:00:05]} 56. Rc3 {[%emt 0:00:53]} Kd4 {[%emt 0:03:01]} 57. Rc6 {[%emt 0:00:54]} Kxe5 {[%emt 0:00:33]} 58. Rc5+ {[%emt 0:00:05]} Kf6 {[%emt 0:00:02]} 59. Rxa5 {[%emt 0:00:13]} Rxb3 {[%emt 0:00:01]} 60. Ra4 {[%emt 0:00:10]} Rd3 {[%emt 0:01:30]} 61. Re4 {[%emt 0:01:38]} Rc3 {[%emt 0:00:47]} 62. Kf2 {[%emt 0:00:35]} e5 {[%emt 0:00:25]} 63. Kg3 {[%emt 0:00:56]} Rd3 {[%emt 0:00:13]} 64. Kf2 {[%emt 0:00:08]} Rd4 {[%emt 0:00:13]} 65. Ke3 {[%emt 0:03:07]} Rd1 {[%emt 0:02:10]} 66. Ke2 {[%emt 0:00:25]} Rb1 {[%emt 0:00:04]} 67. Ke3 {[%emt 0:00:32]} Rb3+ {[%emt 0:00:04]} 68. Ke2 {[%emt 0:00:10]} Ke6 {[%emt 0:00:08]} 69. Kf2 {[%emt 0:00:43]} Rd3 {[%emt 0:00:15]} 70. Kg2 {[%emt 0:03:12]} Rd4 {[%emt 0:00:08]} 71. Re3 {[%emt 0:00:20]} e4 {[%emt 0:00:55]} 72. fxe4 {[%emt 0:01:54]} Ke5 {[%emt 0:01:32]} 73. Rf3 {[%emt 0:02:15]} e6 {[%emt 0:00:00]} 74. Rf8 {[%emt 0:03:22]} Rxe4 {[%emt 0:00:29]} 75. Kg3 {[%emt 0:00:26]} Re3+ {[%emt 0:00:05]} 76. Kf2 {[%emt 0:00:28]} Rb3 {[%emt 0:00:05]} 77. Rf7 {[%emt 0:00:20]} Rc3 {[%emt 0:02:46]} 78. Rf8 {[%emt 0:00:01]} Rc5 $15 {[%emt 0:00:29]} 79. Re8 {[%emt 0:01:11]} Kd5 {[%emt 0:00:26]} 80. Rg8 {[%emt 0:00:37]} Ke4 {[%emt 0:00:52]} 81. Rf8 {[%emt 0:00:12]} Kd4 {[%emt 0:01:02]} 82. Rg8 {[%emt 0:01:00]} Rd5 {[%emt 0:00:37]} 83. Kg3 {[%emt 0:00:22]} Ke4 {[%emt 0:00:06]} 84. Rf8 {[%emt 0:00:15]} Rd3+ {[%emt 0:00:48]} 85. Kg2 {[%emt 0:00:24]} Rd7 {[%emt 0:00:01]} 86. Kg3 {[%emt 0:00:15]} Ke5 {[%emt 0:00:48]} 87. Kg2 {[%emt 0:00:36]} Kd4 {[%emt 0:01:18]} 88. Rg8 {[%emt 0:00:21]} Rd5 {[%emt 0:00:53]} 89. Kg3 {[%emt 0:00:50]} Ke4 {[%emt 0:00:41]} 90. Rg6 {[%emt 0:00:41]} Re5 {[%emt 0:00:32]} 91. Rf6 {[%emt 0:00:12]} Kd5 {[%emt 0:00:28]} 92. Rg6 {[%emt 0:00:18]} Kd6 {[%emt 0:00:09]} 93. Rg7 {[%emt 0:00:18]} Ra5 {[%emt 0:00:08]} 94. Kg2 {[%emt 0:00:39]} Re5 {[%emt 0:00:50]} 95. Rf7 {[%emt 0:00:08]} Kd5 {[%emt 0:00:40]} 96. Rg7 {[%emt 0:00:24]} Ke4 {[%emt 0:00:11]} 97. Kg3 {[%emt 0:00:03]} Ra5 {[%emt 0:00:09]} 98. Rg6 {[%emt 0:00:29]} Re5 {[%emt 0:01:34]} 99. Rf6 {[%emt 0:00:19]} Ke3 {[%emt 0:00:05]} 100. Rg6 {[%emt 0:00:21]} Ke2 {[%emt 0:00:08]} 101. Kg2 {[%emt 0:00:18]} Ke1 {[%emt 0:00:18]} 102. Kg1 {[%emt 0:00:16]} Kd2 {[%emt 0:00:14]} 103. Kf2 {[%emt 0:00:23]} Re2+ {[%emt 0:00:54]} 104. Kf3 {[%emt 0:00:16]} e5 {[%emt 0:01:08]} 105. Rd6+ {[%emt 0:02:13]} Ke1 {[%emt 0:00:01]} 106. Re6 {[%emt 0:00:09]} Kf1 {[%emt 0:00:54]} 107. Re7 {[%emt 0:00:04]} Rf2+ {[%emt 0:01:26]} 108. Kg3 {[%emt 0:02:01]} 1/2-1/2